Cogmind - Beta 16 @@@ ROGUE MODE // 2026.02.05 @ 23:58:32 Player: Megaknight51 Result: Destroyed by L-31 Rogue with Katana Performance ------------- Evolutions (1) 500 Regions Visited (4) 800 Robots Destroyed (83) 415 Value Destroyed (1612) 1612 Prototype IDs (8) 160 Alien Tech Used (0) 0 Bonus (33) 33 TOTAL SCORE: 3520 Bonus ------- Follower Combat Kills 33 Cogmind --------- Core Integrity 0/400 Matter 195/300 Energy 280/280 System Corruption 0% Temperature Cool (0) Movement Treading (240) Ox1 Location -9/Storage Parts ------- > --- POWER (1) -------- Cooled Ion Engine > --- PROPULSION (2) --- Light Treads Light Treads > --- UTILITY (4) ------ High-capacity Storage Unit Signal Interpreter Light Armor Plating > --- WEAPON (2) ------- Improved Assault Rifle Improved Assault Rifle > --- INVENTORY (20) --- Ion Engine Improved Ion Engine Light Treads Improved Treads VTOL Module VTOL Module VTOL Module VTOL Module Large Matter Pod (150) High-capacity Matter Pod (200) Structural Scanner Improved Terrain Scanner Terrain Scan Processor Seismic Detector Field Recycling Unit (0) Thief Drone Bay (3/3) Improved Assault Rifle Rocket Launcher Rocket Launcher Shock Maul Peak State ------------ > --- POWER ------------ Improved Ion Engine > --- PROPULSION ------- Light Treads Light Treads > --- UTILITY ---------- High-capacity Storage Unit Structural Scanner Signal Interpreter Experimental Targeting Computer > --- WEAPON ----------- Improved Assault Rifle Improved Assault Rifle > --- INVENTORY -------- Ion Engine Ion Engine Light Ion Engine Improved Treads VTOL Module VTOL Module VTOL Module VTOL Module Small Storage Unit Large Matter Pod High-capacity Matter Pod Structural Scanner Improved Terrain Scanner Terrain Scan Processor Seismic Detector Field Recycling Unit Thief Drone Bay Improved Assault Rifle Rocket Launcher Rocket Launcher [Rating: 22] Favorites ----------- Power Ion Engine Engine Ion Engine Propulsion Light Treads Treads Light Treads Leg Aluminum Leg Utility High-capacity Storage Unit Device Structural Scanner Storage High-capacity Storage Unit Processor Signal Interpreter Protection Light Armor Plating Weapon Light Cannon Energy Gun Small Laser Ballistic Gun Improved Assault Rifle Ballistic Cannon Light Cannon Launcher Rocket Launcher Impact Weapon Shock Maul Build | -11 -10 -10 -9 -9 ------- Run | Yrd Mat Min Mat Sto Slots Evolved 2 | . . . 2 . Power . | . . . . . Propulsion . | . . . . . Utility 2 | . . . 2 . Weapon . | . . . . . Parts Attached 40 | 7 3 1 18 11 Power 6 | 1 . . 3 2 Engine 6 | 1 . . 3 2 Core . | . . . . . Reactor . | . . . . . Propulsion 12 | 2 . . 6 4 Treads 10 | 2 . . 4 4 Leg 2 | . . . 2 . Wheel . | . . . . . Hover . | . . . . . Flight . | . . . . . Utility 11 | 2 1 1 5 2 Device 5 | 1 . 1 3 . Storage 2 | 1 1 . . . Processor 2 | . . . 1 1 Hackware . | . . . . . Protection 2 | . . . 1 1 Artifact . | . . . . . Weapon 11 | 2 2 . 4 3 Energy Gun 2 | 1 . . 1 . Energy Cannon . | . . . . . Ballistic Gun 5 | 1 . . 3 1 Ballistic Cannon 2 | . 2 . . . Launcher 1 | . . . . 1 Special Weapon . | . . . . . Impact Weapon 1 | . . . . 1 Slashing Weapon . | . . . . . Piercing Weapon . | . . . . . Special Melee Weapon . | . . . . . Unidentified Prototypes 5 | . . 1 1 3 Parts Lost 11 | . . . 9 2 Power 2 | . . . 2 . Propulsion 4 | . . . 3 1 Utility 2 | . . . 1 1 Weapon 3 | . . . 3 . Highest Loss Streak 5 | . . . 5 1 To Critical Strikes 2 | . . . 1 1 Average Backups 14 | . 9 17 17 19 Power 2 | . 2 3 3 2 Propulsion 3 | . 2 5 5 5 Utility 6 | . 4 8 7 8 Weapon 1 | . . 1 1 3 Tool/Special . | . . . . . Unused Backups 20 | . . . 4 16 Power 3 | . . . . 3 Propulsion 10 | . . . 4 6 Utility 5 | . . . . 5 Weapon 2 | . . . . 2 Tool/Special . | . . . . . Average Slot Usage (%) 96 | . 100 100 89 99 Engine 11 | . 14 14 9 11 Treads 23 | . 28 28 18 21 Device 14 | . 14 14 15 11 Storage 12 | . 14 14 11 11 Processor 5 | . . . 10 11 Protection 2 | . . . 1 10 Ballistic Gun 11 | . 10 . 10 21 Ballistic Cannon 12 | . 17 28 8 . Peak Build Rating 22 | 7 9 15 16 22 Average Rating 10 | 5 7 9 12 17 On Entrance 8 | . 7 9 9 16 Avg Prop Armor Cover (%) . | . . . . . Naked Turns . | . . . . . Heaviest Build 58 | 14 52 52 53 58 Greatest Support 40 | 40 40 40 40 40 Greatest Overweight (x) 17 | . 1 1 17 2 Average Overweight (x) . | . . 1 1 1 Largest Inventory Capacity 20 | 8 20 20 20 20 Average Capacity 19 | 7 18 20 20 20 Most Carried 20 | 2 17 18 20 20 Average Carried 14 | . 9 17 17 19 Final Capacity 20 | 8 20 20 20 20 Final Carried 20 | 2 17 18 20 20 Class Distribution -------------------- 55% | Mutant 34% | Scavenger-Mutant 9% | Skirmisher Dominant Class ---------------- Mutant | -10/Materials Mutant | -10/Mines Scavenger-Mutant | -9/Materials Scavenger-Mutant | -9/Storage Resources | -11 -10 -10 -9 -9 ----------- Run | Yrd Mat Min Mat Sto Matter Collected 2004 | 294 654 76 613 367 Remotely . | . . . . . Salvage Created 2959 | 81 711 51 1339 777 Parts 172 | 14 44 2 86 26 Haulers Intercepted 6 | . . . 4 2 Recyclers Shooed 18 | 1 9 . 7 1 Parts Field Recycled . | . . . . . Retrieved Matter . | . . . . . Parts Self-Destructed . | . . . . . Prevented . | . . . . . Parts Restored . | . . . . . Kills | -11 -10 -10 -9 -9 ------- Run | Yrd Mat Min Mat Sto Combat Hostiles Destroyed 44 | . 13 2 19 10 Guns 21 | . 6 . 7 8 Cannons 21 | . 7 2 12 . AOE 2 | . . . . 2 Classes Destroyed 10 | 1 5 . 4 . Worker 1 | . . . 1 . Builder 6 | . 3 . 3 . Tunneler 5 | 4 . . 1 . Hauler 6 | . . . 4 2 Recycler 17 | . 6 . 8 3 Operator 3 | . 1 . 2 . Watcher 1 | . . . 1 . Swarmer 14 | . 6 . 8 . Grunt 21 | . 7 2 9 3 Sentry 9 | . . . 2 7 Best Kill Streak 13 | 1 5 2 13 3 Combat Bots Only 4 | . 4 2 4 2 Max Kills in Single Turn 2 | 1 1 1 2 2 Gunslinging . | . . . . . Exploded 2 | . . . . 2 Melee . | . . . . . Uniques/NPCs Destroyed . | . . . . . Combat | -11 -10 -10 -9 -9 -------- Run | Yrd Mat Min Mat Sto Hostile Shots Fired 247 | . 37 16 142 52 Missed 71 | . 13 5 42 11 Hits 176 | . 24 11 100 41 Melee 7 | . . . . 7 Projectile 169 | . 24 11 100 34 Critical Strikes 8 | . . . 2 6 Damage Taken 2298 | . 243 137 1179 739 Core 442 | . 13 28 248 153 Absorbed by Shields . | . . . . . Core Remaining (%) 91 | 100 . 83 . . Volleys Fired 225 | 14 52 7 102 50 Largest 2 | 2 2 2 2 2 Hottest 70 | 70 60 60 60 56 Shots Fired 414 | 28 104 14 168 100 Gun 252 | 28 47 . 80 97 Cannon 159 | . 57 14 88 . Launcher 3 | . . . . 3 Special . | . . . . . Kinetic 371 | 14 104 14 142 97 Thermal 40 | 14 . . 26 . Explosive 3 | . . . . 3 Electromagnetic . | . . . . . Robot Hit Streak 20 | 7 8 8 19 20 Robot Miss Streak 7 | 3 3 1 7 1 Penetration Max . | . . . . . Secondary Targets 2 | . . . 2 . Max Gunslinging Chain 1 | . . . 1 . Shots Hit Robots 250 | 15 64 12 94 65 Core Hits 116 | 7 33 3 47 26 Critical Kills 1 | . 1 . . . Critical Parts Destroyed 1 | . . . 1 . Critical Strikes 12 | 1 3 . 8 . Burn 1 | 1 . . . . Destroy 2 | . 1 . 1 . Blast 9 | . 2 . 7 . Melee Attacks . | . . . . . Impact . | . . . . . Slashing . | . . . . . Piercing . | . . . . . Sneak Attacks . | . . . . . Combat Hostiles . | . . . . . Follow-up Attacks . | . . . . . Damage Inflicted 3811 | 155 826 224 1510 1096 Guns 1898 | 155 265 . 503 975 Cannons 1745 | . 543 224 978 . Explosions 120 | . . . . 120 Melee . | . . . . . Ramming 48 | . 18 . 29 1 Kinetic 3415 | 69 808 224 1339 975 Thermal 228 | 86 . . 142 . Explosive 120 | . . . . 120 Electromagnetic . | . . . . . Impact . | . . . . . Slashing . | . . . . . Piercing . | . . . . . Highest Corruption . | . . . . . Average Corruption . | . . . . . Corruption Purged . | . . . . . Corruption Blocked . | . . . . . Overload Shots . | . . . . . Overflow Damage 20 | . 13 . 7 . Projectiles 20 | . 13 . 7 . Explosions . | . . . . . Melee . | . . . . . Knockbacks 20 | . 6 3 11 . Impact 1 | . . . 1 . Kinetic 18 | . 6 3 9 . Secondary 1 | . . . 1 . Self-Inflicted Damage 9 | . . . . 9 Shots 1 | . . . . 1 Rammed 11 | . 4 . 6 1 Targets Rammed 13 | . 4 . 8 1 Kicked . | . . . . . Crushed 2 | . . . 2 . Highest Temperature 90 | 90 32 75 42 44 Average Temperature 19 | 33 9 45 10 21 Received Heat Transfer 870 | . 81 75 501 213 Siege Activations . | . . . . . Martial Activations . | . . . . . Shielding Activations . | . . . . . Robots Disrupted . | . . . . . Combat Hostiles . | . . . . . Robots Corrupted . | . . . . . Combat Hostiles . | . . . . . Parts Fried . | . . . . . Impact Corruptions . | . . . . . Robots Melted . | . . . . . Combat Hostiles . | . . . . . Parts Melted 1 | . . . 1 . Heat Transferred 658 | 333 . . 325 . Parts Sabotaged . | . . . . . Parts Stolen . | . . . . . Parts Stripped . | . . . . . Power Chain Reactions . | . . . . . Alert | -11 -10 -10 -9 -9 ------- Run | Yrd Mat Min Mat Sto Maximum Alert Level 1 | . . . 1 . Low Security (%) 99 | 100 100 100 99 100 Level 1 . | . . . . . Level 2 . | . . . . . Level 3 . | . . . . . Level 4 . | . . . . . Level 5 . | . . . . . High Security . | . . . . . Max Security . | . . . . . Peak Influence 201 | 5 128 50 201 113 Initial 61 | . . 3 . 61 Average 62 | . 44 7 112 51 Influence Increases 1584 | 20 462 58 667 377 Destroy 0b10 Robot/C 900 | . 260 40 400 200 Destroy 0b10 Robot/NC 195 | 20 50 . 100 25 Destroy Leader 234 | . 60 10 90 74 Allied During Kill 2 | . . . 2 . Successful Hack 26 | . 11 8 . 7 Disable Machine 105 | . 60 . . 45 Destroy Structure 32 | . 6 . . 26 Lose Combat Pursuer 90 | . 15 . 75 . Influence Decreases 1524 | 20 453 67 520 464 Entered New Map 92 | . . 6 . 86 Time Decay 1322 | 20 453 61 430 358 Lost Part 110 | . . . 90 20 Squads Dispatched 6 | . 3 . 3 . Investigation 2 | . 2 . . . Extermination . | . . . . . Reinforcement 4 | . 1 . 3 . Assault . | . . . . . Garrison . | . . . . . Intercept . | . . . . . Searches Triggered . | . . . . . Construction Impeded 1 | . . . 1 . Haulers Reinforced . | . . . . . Active Scanning Responses . | . . . . . Cargo Convoy Interrupts . | . . . . . Stealth | -11 -10 -10 -9 -9 --------- Run | Yrd Mat Min Mat Sto Distress Signals 9 | . 4 . 3 2 Communications Jammed . | . . . . . Distress Signals . | . . . . . Times Spotted 94 | . 30 2 49 13 Peak Tracking Total 5 | . 4 2 5 3 Tactical Retreats 6 | . 1 . 5 . Traps | -11 -10 -10 -9 -9 ------- Run | Yrd Mat Min Mat Sto Traps Triggered 1 | . 1 . . . Indirectly . | . . . . . Trap Hack Attempts . | . . . . . Triggered . | . . . . . Disarmed . | . . . . . Reprogrammed . | . . . . . Reused . | . . . . . Traps Extracted . | . . . . . Installed . | . . . . . Triggered . | . . . . . Machines | -11 -10 -10 -9 -9 ---------- Run | Yrd Mat Min Mat Sto Machines Disabled 7 | . 4 . . 3 Max in Single Turn 1 | . 1 . . 1 Machines Repaired . | . . . . . Machines Dismantled . | . . . . . Machines Sabotaged . | . . . . . Overloaded Fab Kills . | . . . . . Hacking | -11 -10 -10 -9 -9 --------- Run | Yrd Mat Min Mat Sto Machines Accessed 13 | . 5 2 4 2 Terminals 11 | . 5 1 3 2 Fabricators . | . . . . . Repair Stations . | . . . . . Recycling Units . | . . . . . Scanalyzers 1 | . . . 1 . Garrison Access . | . . . . . Total Hacks 30 | . 11 3 11 5 Successful 11 | . 4 2 3 2 Failed 19 | . 7 1 8 3 Catastrophic 7 | . 4 . 1 2 Database Lockouts . | . . . . . Manual 15 | . 9 2 4 . Terminals 26 | . 11 2 8 5 Fabricators . | . . . . . Repair Stations . | . . . . . Recycling Units . | . . . . . Scanalyzers 3 | . . . 3 . Garrison Access . | . . . . . Terminal Hacks 11 | . 4 2 3 2 Robot Analysis 2 | . 1 . 1 . Prototype ID Bank 2 | . 1 . 1 . Open Door 3 | . . 1 . 2 Branch Access Points 1 | . . 1 . . Terminal Index 1 | . 1 . . . Hauler Manifests 2 | . 1 . 1 . Fabricator Hacks . | . . . . . Repair Station Hacks . | . . . . . Recycling Unit Hacks . | . . . . . Scanalyzer . | . . . . . Garrison Access Hacks . | . . . . . Unauthorized Hacks . | . . . . . Terminals . | . . . . . Fabricators . | . . . . . Repair Stations . | . . . . . Recycling Units . | . . . . . Scanalyzers . | . . . . . Garrison Access . | . . . . . Data Cores Recovered . | . . . . . Used . | . . . . . Hacking Detections 12 | . 5 1 4 2 Full Trace Events 2 | . 1 . 1 . Feedback Events . | . . . . . Feedback Blocked . | . . . . . Robot Schematics Acquired . | . . . . . Robots Built . | . . . . . Authchips . | . . . . . Time . | . . . . . Total Robot Build Rating . | . . . . . Part Schematics Acquired . | . . . . . Parts Built . | . . . . . Authchips . | . . . . . Time . | . . . . . Total Part Build Rating . | . . . . . Part Studies Acquired . | . . . . . Parts Repaired . | . . . . . Time . | . . . . . Parts Recycled . | . . . . . Recycled Matter . | . . . . . Retrieved Matter . | . . . . . Retrieved Components . | . . . . . Parts Scanalyzed . | . . . . . Part Schematics Acquired . | . . . . . Parts Damaged . | . . . . . Bothacking | -11 -10 -10 -9 -9 ------------ Run | Yrd Mat Min Mat Sto Used RIF Installer . | . . . . . Robots Hacked . | . . . . . Non-combat . | . . . . . Combat . | . . . . . Robot Hacks Applied . | . . . . . Relay Couplers Released . | . . . . . Fabnet Peak Effective % . | . . . . . Robots Rewired . | . . . . . Allies Hacked . | . . . . . Hacks Repelled . | . . . . . Allies | -11 -10 -10 -9 -9 -------- Run | Yrd Mat Min Mat Sto Total Allies 1 | . . 1 . . Largest Group 1 | . . 1 1 . Highest-Rated Group 31 | . . 31 31 . Highest-Rated Ally 31 | . . 31 31 . Total Orders . | . . . . . Ally Attacks 1 | . . . 1 . Total Damage 22 | . . . 22 . Kills 1 | . . . 1 . Allies Corrupted . | . . . . . Allies Melted . | . . . . . Intel | -11 -10 -10 -9 -9 ------- Run | Yrd Mat Min Mat Sto Active Infowar (turns) 5098 | 125 1927 478 1712 856 Sensors 512 | . . . 512 . Structural 2555 | . . . 1699 856 Seismic 2542 | 125 1927 478 12 . Robot Analysis Total 2 | . 1 . 1 . Derelict Logs Recovered 1 | . . 1 . . Drone Launches . | . . . . . Drone Recoveries . | . . . . . Exploration | -11 -10 -10 -9 -9 ------------- Run | Yrd Mat Min Mat Sto Turns Passed 5207 | 224 1927 483 1712 861 Spaces Moved 1794 | 109 718 192 509 266 Core 9 | 2 . . 7 . Treads 1771 | 107 718 192 488 266 Legs 14 | . . . 14 . Wheels . | . . . . . Hover . | . . . . . Flight . | . . . . . Fastest Speed 50 | 50 160 240 240 240 Average Speed 235 | 157 227 240 258 243 Slowest Speed 900 | 160 240 240 900 320 Overloaded Moves . | . . . . . Propulsion Burnouts . | . . . . . Robots Hopped . | . . . . . Potential Cave-ins . | . . . . . Cave-ins Triggered . | . . . . . Exploration Rate (%) 46 | 5 97 31 53 45 Regions Visited 4 Branch Regions 2 Pre-discovered Areas . | . . . . . Known Exits Taken 1 | . . . 1 . Unknown Exits Taken 3 | 1 1 1 . . Scrap Searched 1 | . . 1 . . Spaces Dug . | . . . . . Terrain Destroyed 22 | . . . . 22 Melee . | . . . . . Projectile . | . . . . . AOE 22 | . . . . 22 Terrain Rammed . | . . . . . Walls Destroyed . | . . . . . Machines Disabled . | . . . . . Actions | -11 -10 -10 -9 -9 --------- Run | Yrd Mat Min Mat Sto Total 2363 | 133 909 202 736 383 Wait 230 | . 119 . 76 35 Move 1790 | 108 717 191 508 266 Hop . | . . . . . Pick Up 27 | 2 13 . 10 2 Fast Attach 22 | 7 . 1 9 5 Attach 8 | 1 . 1 6 . Detach 8 | 1 . 2 4 1 Swap 19 | . 4 . 4 11 Drop 21 | . . . 9 12 Fire 225 | 14 52 7 102 50 Melee . | . . . . . Ram . | . . . . . Kick . | . . . . . Crush 13 | . 4 . 8 1 Escape Stasis . | . . . . . Rewire . | . . . . . Trap . | . . . . . Miscellaneous . | . . . . . Route ------- -11/Scrapyard -10/Materials (discovered 5 exits: *Mat x3 / *Min x2) -10/Mines -9/Materials (discovered 4 exits: *Mat x2 / *Sto x2) -9/Storage History --------- Turn | Location | Event 23 | -11/Scrapyard | Discovered new exit (range 16) 225 | -11/Scrapyard | Entered Materials 310 | -10/Materials | Build established: Mutant 756 | -10/Materials | Discovered new exit (range 15) 790 | -10/Materials | Discovered new exit (range 9) 886 | -10/Materials | Discovered new exit (range 16) 1587 | -10/Materials | Discovered new exit (range 15) 2037 | -10/Materials | Discovered new exit (range 12) 2152 | -10/Materials | Entered Mines 2172 | -10/Mines | Met a Derelict bent on vengeance 2357 | -10/Mines | Found the Drone Emporium 2373 | -10/Mines | Found Prototype Device 2373 | -10/Mines | Identified Thief Drone Bay 2475 | -10/Mines | Found a hidden stash of uninstalled traps 2551 | -10/Mines | Learned 8 Materials zone layouts 2595 | -10/Mines | Discovered new exit (range 5) 2605 | -10/Mines | Received a Mining Laser from a helpful Derelict 2635 | -10/Mines | Entered Materials 2635 | -9/Materials | Accompanied by 1 ally 2635 | -9/Materials | Evolved 2 slots: Utility x2 2636 | -9/Materials | Identified exit to Materials 2636 | -9/Materials | Identified exit to Storage 2954 | -9/Materials | Build established: Skirmisher 3188 | -9/Materials | Lost 3 parts (1p1n1u) 3392 | -9/Materials | Lost 5 parts (1p1n3w) 3487 | -9/Materials | Core integrity fell below 50% 3740 | -9/Materials | Build established: Scavenger-Mutant 4314 | -9/Materials | Discovered exit to Storage (range 8) 4347 | -9/Materials | Entered Storage 4513 | -9/Storage | Core integrity fell below 20% 4643 | -9/Storage | Found Prototype Processor 4643 | -9/Storage | Identified Exp. Targeting Computer 5208 | -9/Storage | Destroyed by L-31 Rogue with Katana Last Messages --------------- 05088_ Acquired 50 matter. 05109_ Transport Mainframe disabled. 05112_ G-34 Mercenary destroyed. 05124_ Critical hit (Burn: +37). 05125_ Y-45 Defender destroyed. 05131_ Acquired 59 matter. 05152_ Dropped Lgt. Armor Plating. 05159_ R-06 Scavenger collects Ion Engine. 05161_ Dropped Ion Engine. 05161_ Acquired Imp. Ion Engine. 05162_ R-06 Scavenger collects Heat Sink. 05162_ K-01 Serf collects debris. 05166_ R-06 Scavenger collects Aluminum Leg. 05169_ K-01 Serf collects debris. 05191_ Imp. Assault Rifle severed. 05191_ K-01 Serf collects debris. 05192_ Acquired Imp. Assault Rifle. 05194_ K-01 Serf collects debris. 05203_ Structural Scanner destroyed. 05206_ K-01 Serf collects debris. Map ----- +----------------------------------------------------+ | ???## ######### ## """ ##??????## | | ???## ######### ## """ ##??????## | | ???## ##+######?## #########???????? | | ???## # ##### #########???????? | | ???## + ##### #########??###??? | | ???## # + ##??? | | ???## # #####+#### # ??? | | ???## # ### # ?????? # ??? | | ???## # ### + ???????????? | | ???## ########## ##???????????? | | ???## ########## """ ##???????????? | | ???## ########## """ ##???????????? | | ???## ########## """ ##???????????? | | ???## ############???????????? | | ???######## ####### ####???????????? | | ???######## ##?????????????????????? | | ????####### ##### ?????????????????? | | ????#######+##### ?????????????????? | | ????## # ?????????????????? | | ????## ## ?????????????????? | | ?##### % ## ?????????????????? | | ?##""" """![[ ##??????????????????? | | ?##"R """"* k ##??????????????????? | | ?##""" """"! ##??????????????????? | | ?##### """" ##??????????????????? | | ?##### @ ##??????????????????? | | ????######l######??????????????????? | | ????# ??????????????????? | | ??????? ???????????????????????? | | ????# ?????????????????????? | | ????######/###?????????????????????? | | ????## ?????????????????????? | | ????????? ???????????????????????? | | ?????????" "???????????????????????? | | ?????????" "???????????????????????? | | ?????????" "???????????????????????? | | ?????????? ????????????????????????? | | ?????????? ????????????????????????? | | ????????? ???????????????????????? | | ?????????###???????????????????????? | | ?????????###???????????????????????? | | ???????????????????????????????????? | | | | | | | | | | | | | | | | | +----------------------------------------------------+ Best States ------------- Heat Dissipation 28 Energy Generation 14 Energy Capacity 280 Matter Stores 300 Matter Capacity 300 Sight Range 16 Robot Scan Range 14 Terrain Scan Density 10 Armor Coverage 150 Evasion (%) 40 Targeting Accuracy 12 Recoil Reduction 2 Item Schematics ----------------- None Robot Schematics ------------------ None Fabricated ------------ Nothing Repaired ---------- Nothing Studied --------- None Alien Tech Used ----------------- None Achievements -------------- None Challenges ------------ None Game ------ Seed CoreGatlingExtractor Manual? 0 Play Time 00:23:12 Cumulative 55.0 hours Start 2026.02.05 @ 23:38:05 End 2026.02.05 @ 23:58:32 Sessions 1 Manual Loads 0 Difficulty Rogue Special Mode None Game No. 106 Rogue 106 Adventurer 0 Explorer 0 Win Type - Total 0 Types 0/0/0/0/0/0/0/0/0/0 Lore% 31 Gallery% 30 Achievement% 27 Wizard Run 0 Options --------- Layout 0 ASCII 0 Keyboard 1 Movement Arrows Keybinds 0 Fullscreen 1 Font 18/Smallcaps Map View 38x25 Zoom Use 88% Tactical HUD 1 Map Filters NONE Filters NONE Steam 1 RUN: 76334ad2-6ab0-4049-87b8-27c536ef6f09